{"text_format":"1","workbook":"xlsx","n_sheets":13,"sheets":["Instruktioner ","0. Sekretesselever","1. Buss","2. Lastbil","3. Lastbil med släp","4. Kontrollblad","Kurslista","5. EU-medel","6. Sammanställning redovisning","Sammanställning ansökan","Dubblettkontroll","Kontrollog","Överstigande poäng"],"not_rendered":{"charts":0,"images":4,"macros":1,"external_links":1,"defined_names":39,"comments":0,"pivot_tables":0},"unopened":[],"bounds":{"document_bytes":16777216,"sheet_cells":100000,"rows_first":2000,"rows_last":500,"rows_between":2000,"halvings":0,"cell_chars":16384,"cell_head_chars":4096},"cells_cut":0,"cells_raw":0,"read":"whole","date_system":"1900"}

{"sheet":"Instruktioner ","index":0,"n_rows":80,"n_cols":8,"rows_kept":80,"cut":false,"hidden":false,"merged":[[10,1,11,12],[72,1,73,12],[0,0,1,13],[3,1,3,12],[5,7,5,11],[6,7,6,10],[8,1,8,12],[57,1,57,12],[49,1,49,12],[68,0,69,13],[48,18,48,27],[20,0,21,13],[23,1,23,3],[23,4,23,12],[34,4,34,12],[38,4,38,12],[41,0,41,13],[43,1,43,12],[44,0,44,13],[46,1,46,12],[47,0,47,13],[49,18,50,27],[51,0,51,13],[53,1,53,12],[55,0,55,13],[67,1,67,12],[75,1,76,12],[79,1,80,12],[59,0,59,13],[61,1,61,12],[62,0,62,13],[64,1,64,12],[65,1,65,12]]}
["Redovisning Yrkesförare 2023"]
[]
[]
[null,"Skicka in redovisningsblanketten i e-tjänsten senast 15 februari 2024. "]
[]
[null,"För frågor om Skolverkets e-tjänst, kontakta:",null,null,null,null,null,"https://www.skolverket.se/om-oss/kontakta-oss"]
[null,"För frågor om redovisningen eller blanketten, kontakta:",null,null,null,null,null,"statsbidragvux@skolverket.se "]
[]
[]
[]
[null,"Kom ihåg att klicka på \"Data\" och sedan \"Uppdatera alla\" i menyn högst upp (eller den röda knappen nedan) efter att ni har lagt in uppgifter någon av följande flikar: 0 Sekretesselever, 1 Buss, 2 Lastbil och 3 Lastbil med släp."]
[]
[]
[]
[]
[]
[]
[]
[]
[]
["Innehåll"]
[]
[]
[null,"Redovisningens flikar",null,null,"Gör det här i flikarna"]
[]
[null,"Instruktioner\n",null,null,"Läs informationen om hur ni redovisar."]
[null,"0. Sekretesselever",null,null,"Fyll i poäng som lästs inom buss, lastbil och lastbil med släp för elever med sekretessmarkerade uppgifter."]
[]
[null,"1. Buss",null,null,"Fyll i uppgifter om de elever som läst kurser inom persontransport (buss)."]
[]
[null,"2. Lastbil",null,null,"Fyll i uppgifter om de elever som läst kurser inom godstransport 1 (lastbil)."]
[]
[null,"3. Lastbil med släp",null,null,"Fyll i uppgifter om de elever som läst kurser inom godstransport 2 (lastbil med släp)."]
[]
[null,"4. Kontrollblad",null,null,"Kontrollera felaktiga personnummer och kurskoder för elever inom buss, lastbil respektive lastbil med slälp. "]
[]
[null,"5. EU-medel",null,null,"Ange namn på utbildningsanordnare och organisationsnummer."]
[]
[null,"6. Sammanställning redovisning",null,null,"Ange huvudsökande kommun. Se sammanställning av redovisningen och vad ni ska återbetala."]
[]
[]
["0. Sekretesselever"]
[]
[null,"Här ska ni fylla i antal lästa verksamhetspoäng för elever med skyddade personuppgifter som ni har genomfört inom ramen för statsbidraget under 2023. Ni anger det totala antalet lästa poäng per kurs för samtliga elever inom respektive utbildningspaket (buss, lastbil och/eller lastbil med släp). Ni behöver även fylla i antal elever med sekretessbelagda uppgifter. \n\nUtbildningsplatser för elever med sekretessbelagda uppgifter kommer summeras i flik 6 Sammanställning redovisning. "]
["1. Buss"]
[]
[null,"Här ska ni fylla i elevernas lästa verksamhetspoäng inom persontransport (buss). Fyll i personnummer, kurskod och antal lästa poäng per elev för bidragsåret 2023. Det går bra att kopiera in uppgifter från en annan fil och klistar in som värde i denna blankett. \n\nOBS: Personnummer får ibland ett konstigt format när man klistrar in från en annan fil. Det ser exempelvis ut såhär: 1,97507E+11. Detta beror på att excel ibland formaterar om personnumret. Blanketten kommer att kunna räkna ut redovisade poäng även om personnumren har detta format. \n\nNär ni har fyllt i alla personnummer, kurskoder och antal poäng måste ni trycka på \"Data\" och sedan \"Uppdatera alla\" i menyfältet högst upp. Då summeras poängen av kurserna och statsbidraget  i den grå tabellen till vänster. \n\nOm ni har angett ett felaktigt personnummer eller en felaktig kurskod kommer uppgifterna att dyka upp i flik 4 Kontrollblad. Dessa poäng kommer inte att inkluderas i er redovisning och ert återkrav blir därmed högre. Dubbelkolla och korrigera därför alla uppgifter som dyker upp i flik 4. Observera att korigeringarna måste göras i flik 1, 2 respektive 3 och att ni återigen måste trycka på \"Data\" och \"Uppdatera alla\" efter att ni ändrat uppgifter. \n\n"]
["2. Lastbil "]
[]
[null,"Här ska ni fylla i elevernas lästa verksamhetspoäng inom godstransport 1 (lastbil). Fyll i personnummer, kurskod och antal lästa poäng per elev för bidragsåret 2023. Det går bra att kopiera in uppgifter från en annan fil och klistar in som värde i denna blankett. \n\nOBS: Personnummer får ibland ett konstigt format när man klistrar in från en annan fil. Det ser exempelvis ut såhär: 1,97507E+11. Detta beror på att excel ibland formaterar om personnumret. Blanketten kommer att kunna räkna ut redovisade poäng även om personnumren har detta format. \n\nNär ni har fyllt i alla personnummer, kurskoder och antal poäng måste ni trycka på \"Data\" och sedan \"Uppdatera alla\" i menyfältet högst upp. Då summeras poängen av kurserna och statsbidraget  i den grå tabellen till vänster. \n\nOm ni har angett ett felaktigt personnummer eller en felaktig kurskod kommer uppgifterna att dyka upp i flik 4 Kontrollblad. Dessa poäng kommer inte att inkluderas i er redovisning och ert återkrav blir därmed högre. Dubbelkolla och korrigera därför alla uppgifter som dyker upp i flik 4. Observera att korigeringarna måste göras i flik 1, 2 respektive 3 och att ni återigen måste trycka på \"Data\" och \"Uppdatera alla\" efter att ni ändrat uppgifter. \n"]
[]
["3. Lastbil med släp"]
[]
[null,"Här ska ni fylla i elevernas lästa verksamhetspoäng inom godstransport 2 (lastbil med släp). Fyll i personnummer, kurskod och antal lästa poäng per elev för bidragsåret 2023. Det går bra att kopiera in uppgifter från en annan fil och klistar in som värde i denna blankett. \n\nOBS: Personnummer får ibland ett konstigt format när man klistrar in från en annan fil. Det ser exempelvis ut såhär: 1,97507E+11. Detta beror på att excel ibland formaterar om personnumret. Blanketten kommer att kunna räkna ut redovisade poäng även om personnumren har detta format. \n\nNär ni har fyllt i alla personnummer, kurskoder och antal poäng måste ni trycka på \"Data\" och sedan \"Uppdatera alla\" i menyfältet högst upp. Då summeras poängen av kurserna och statsbidraget  i den grå tabellen till vänster. \n\nOm ni har angett ett felaktigt personnummer eller en felaktig kurskod kommer uppgifterna att dyka upp i flik 4 Kontrollblad. Dessa poäng kommer inte att inkluderas i er redovisning och ert återkrav blir därmed högre. Dubbelkolla och korrigera därför alla uppgifter som dyker upp i flik 4. Observera att korigeringarna måste göras i flik 1, 2 respektive 3 och att ni återigen måste trycka på \"Data\" och \"Uppdatera alla\" efter att ni ändrat uppgifter. \n"]
[]
["4. Kontrollblad"]
[]
[null,"Här visas personnummer som inte är korrekta, och även kurskoder som är felaktiga alternativt inte godkända. I kontrollen fångas även upp om lästa verksamhetspoäng är angivna i fel format eller om värdet är tomt, samt om antalet poäng överstiger maxtaket för kursen. Om antalet poäng överstiger maxtaket så kommer vi att skicka ut en komplettering där ni får möjlighet att ange varför eleven läst mer än den tillåtna maxgränsen. Om personnumret, kurskoden och/eller verksamhetspoäng dyker upp som Nej i listan så har poängen inte summerats för eleven i fråga. Det felaktiga uppgifterna måste då korrigeras i flik 1, 2 och/eller 3 innan poängen räknas med. Efter att korrigering av felaktiga uppgifter gjorts, gå till menyn och tryck på Data och sedan Uppdatera alla. När felet/felen är korrigerade så kommer eleven/eleverna att försvinna från kontrollbladet, flik 4."]
[]
["5. EU-medel"]
[]
[null,"För 2020-2023 har Skolverket tilldelats EU-medel som delfinansierar statsbidrag (2016:937) för regional yrkesinriktad vuxenutbildning. \n\nSkolverket samlar in uppgifter från er för att sedan rapportera vidare till Ekonomistyrningsverket och Europeiska kommissionen. Enligt 36 § tredje stycket i förordning (2016:937) ska ni lämna sådan ekonomisk och annan redovisning som Ekonomistyrningsverket och Europeiska kommissionen begär. Ni ska fylla i de utbildningsanordnare som ni, eller kommuner i er samverkansgrupp, har upphandlat utbildning från. Har ni upphandlat utbildning från en annan kommun så ska den kommunen fyllas i som utbildningsanordnare. I högra tabellen ska ni fylla i de kommuner/kommunalförbund i ert samverkansområde som bedrivit utbildning i egen regi."]
["6. Sammansällning redovisning"]
[]
[null,"Välj den kommun som varit huvudsökande för bidragsåret 2023. Samverkande kommuner finns på en separat flik, se Sammanställning av ansökan. "]
[null,"Beviljat belopp och preliminärt redovisat belopp\nSe sammanställning över beviljat bidrag för 2023 samt preliminärt redovisat belopp och preliminärt belopp för återbetalning (innan kontroller och eventuella avdrag gjorts i handläggningen)."]
[]
[null,"Slutgiltigt redovisat belopp och belopp för återbetalning (obs! denna del kommer synas först när vi är klara med kontrollerna av er redovisning)\nSe uppgifter om kontroller som genomförts i handläggningen, samt borträknade poäng och statsbidrag till följd av kontrollerna. Se även sammanställning över slutgiltigt redovisat belopp efter handläggning och belopp som ska återbetalas längst ner i blanketten. \n\nNi kan välja att ange en fakturareferens som vi i sådana fall kommer ange på fakturan vid eventuellt återkrav. \n\nEventuella synpunkter till Skolverket\nHär kan ni lämna synpunkter på bidragsåret 2023 och statsbidrag för Regionalt yrkesvux generellt. Uppgifterna är inte obligatoriska."]
["Kontroller i handläggningen och kontaktuppgifter"]
[]
[]
[null,"Kontroller vi kommer göra i redovisningen:"]
[null,"Vi kommer kontrollera om elever läst fler utbildningar. Om en elev läst minst två utbildningar kommer vi begära en komplettering och fråga om detta stämmer. "]
[]
[]
[null,"Vi kommer kontrollera dubbletter i redovisningen. Vi jämför personnummer, kurskoder och kurspoäng i samtliga bidrag och mellan samtliga kommungrupper. Hittar vi dubbletter kommer vi begära en komplettering av er redovisning."]
[]
[]
[null,"Kontroller vi kan komma att göra efter redovisningen:"]
[null,"Vi kan komma att jämföra er redovisning med den officiella komvux-statistiken för att se att ni uppfyllt kravet om medfinansiering. Om det verkar som att ni inte gjort det kommer vi att kontakta er efter redovisningen.  "]

{"sheet":"0. Sekretesselever","index":1,"n_rows":33,"n_cols":15,"rows_kept":33,"cut":false,"hidden":false,"merged":[[0,5,1,16],[0,1,0,3],[6,1,6,3],[19,5,19,16],[20,5,26,16],[13,1,13,3],[14,5,16,10],[14,11,16,16],[2,5,3,7],[4,5,5,7],[2,8,3,10],[2,11,3,13],[2,14,3,16],[6,5,7,7],[6,8,7,10],[6,11,7,13],[10,5,10,7],[4,8,5,10],[4,11,5,13],[4,14,5,16],[10,11,10,13],[10,14,10,16],[10,8,10,10],[8,5,9,7],[8,8,9,10],[8,11,9,13],[8,14,9,16],[6,14,7,16]]}
[null,"Buss",null,null,null,"Summering sekretesselever"]
["Kronor per poäng","Kursnamn","Kurskod","Lästa verksamhetspoäng per kurskod"]
[43.75,"Yrkestrafik 1","TRAYRK1",null,null,"Utbildningsplats",null,null,"Totalt lästa verksamhetspoäng",null,null,"Antal utbildningsplatser",null,null,"Statsbidrag"]
[93.75,"Persontrafik 1","PESPER1"]
[null,null,null,null,null,"Buss",null,null,{"$f":"SUM(Tabell10[Lästa verksamhetspoäng per kurskod])","v":0},null,null,{"$f":"I5/500","v":0},null,null,{"$f":"L5*60000","v":0}]
[]
[null,"Lastbil",null,null,null,"Lastbil",null,null,{"$f":"SUM(Tabell13[Lästa verksamhetspoäng per kurskod])","v":0},null,null,{"$f":"I7/600","v":0},null,null,{"$f":"L7*69000","v":0}]
[null,"Kursnamn","Kurskod","Lästa verksamhetspoäng per kurskod"]
[93.75,"Yrkestrafik 1","TRAYRK1",null,null,"Lastbil med släp",null,null,{"$f":"SUM(Tabell14[Lästa verksamhetspoäng per kurskod])","v":0},null,null,{"$f":"I9/800","v":0},null,null,{"$f":"L9*95000","v":0}]
[93.75,"Godstrafik 1","GOSGOD0"]
[93.75,"Godshantering 1","GODGOD1",null,null,"Summa",null,null,{"$f":"SUM(I5:K10)","v":0},null,null,{"$f":"SUM(L5:N10)","v":0},null,null,{"$f":"SUM(O5:Q10)","v":0}]
[]
[]
[null,"Lastbil med släp"]
[null,"Kursnamn","Kurskod","Lästa verksamhetspoäng per kurskod",null,"Fyll i antal elever som har sekretessbelagda uppgifter"]
[93.75,"Yrkestrafik 1","TRAYRK1"]
[93.75,"Godstrafik ","GOSGOD0"]
[93.75,"Godshantering 1","GODGOD1"]
[93.75,"Fordonskombinationer","TRAFOR0"]
[93.75,null,null,null,null,"Instruktioner"]
[93.75,null,null,null,null,"Här fyller ni i antal lästa verksamhetspoäng per kurskod för elever med skyddade personuppgifter som ni har genomfört inom ramen för statsbidraget under 2023. Ni anger det totala antalet poäng per kurs inom respektive utbildningspaket (buss, lastbil och/eller lastbil med släp). Ni ska således fylla i summan av samtliga elevers lästa poäng i respektive kurs. Efter att ni har fyllt i uppgifterna gå till huvudmenyn och tryck på Data och sedan Uppdatera alla (eller den röda knappen nedan).\n\nI den blå rutan anger ni hur många elever som har sekretessbelagda uppgifter."]
[93.75]
[93.75]
[93.75]
[93.75]
[93.75]
[93.75]
[43.75]
[93.75]
[43.75]
[43.75]
[43.75]
[43.75]

{"sheet":"1. Buss","index":2,"n_rows":37,"n_cols":8,"rows_kept":37,"cut":false,"hidden":false,"merged":[[36,5,43,7],[0,5,1,7],[7,5,7,7],[8,5,11,7],[28,5,28,7],[29,5,34,7],[35,5,35,7],[21,5,27,7],[12,5,20,7]]}
["Kommun (valfri)","Personnummer","Kurskod","Lästa verksamhetspoäng",null,"Summering av redovisat statsbidrag visas nedan när du tryckt på Uppdatera alla under Data i menyn ovan (eller den röda knappen nedan)"]
[]
[null,null,null,null,null,"Kurskod","Summa lästa verksamhetspoäng","Summa statsbidrag"]
[]
[null,null,null,null,null,"Summa",{"$f":"SUBTOTAL(109,Sammanfattning_buss[Summa lästa verksamhetspoäng])","v":0},{"$f":"SUBTOTAL(109,Sammanfattning_buss[Summa statsbidrag])","v":0}]
[]
[]
[null,null,null,null,null,"Instruktioner"]
[null,null,null,null,null,"Kommun (valfri)\t \t \t \nNågra kommuner har efterfrågat en möjlighet att notera i blanketten vilken kommun som lämnat uppgifter om en elev. Denna uppgift är inte obligatorisk och ni avgör själva om ni vill skriva in kommuner i kolumn A.\n\n\n"]
[]
[]
[]
[null,null,null,null,null,"Personnummer\t \t \t \nI tabellen summeras bara korrekta personnummer. Personnummer som inte är korrekta dyker upp i flik 4 Kontrollblad. Elever med tillfälliga personnummer rapporteras med födelsedatum och sedan TF20 för kvinna och TF10 för man, exempel: 19920427TF20. Det är även möjligt att rapportera andra TF-nummer.  Det viktiga är att siffran närmast F:et är udda om det är en man och jämn om det är en kvinna. Observera att elever med skyddade personuppgifter rapporteras i separat flik 0 Sekretesselever. \n\n\n\n\n"]
[]
[]
[]
[]
[]
[]
[]
[]
[null,null,null,null,null,"Kurskod\t \t \t \nKurserna som ingår persontransport (Buss) är TRAYRK1 och PESPER1. För varje person anger ni vilken kurs/vilka kurser inom persontransport som eleven läst samt hur många poäng som lästs i respektive kurs. Ni ska bara redovisa elever som läst persontransport i denna flik. För elever som läst godstransport (lastbil/lastbil med släp) behöver ni redovisa i flik 2 och 3.\n\n\n\n"]
[]
[]
[]
[]
[]
[]
[null,null,null,null,null,"Lästa verksamhetspoäng"]
[null,null,null,null,null,"Här fyller ni i hur många verksamhetspoäng som eleven har genomfört på varje kurs under 2023. Om kursen började 2022 eller avslutas 2024 behöver ni dra av de poäng som inte genomfördes under 2023. Om en elev avbryter en kurs ska ni ange de poäng som eleven har genomfört fram tills avbrottet. \n\nEfter att ni har fyllt i uppgifterna gå till menyn och tryck på Data och sedan Uppdatera alla."]
[]
[]
[]
[]
[]
[null,null,null,null,null,"Persontransport (Buss) 500 vp"]
[null,null,null,null,null,"Yrkestrafik, kurskod: TRAYRK1, 300 verksamhetspoäng\nPersontrafik, kurskod: PESPER1, 200 verksamhetspoäng\n \t\nOBS! Redovisar ni mer än 300 poäng inom TRAYRK1 eller mer än 200 poäng inom PESPER1 kommer ni att behöva motivera detta i en komplettering. Vi kan även komma att begära in ytterligare underlag som styrker ert svar.\n\n\n"]

{"sheet":"2. Lastbil","index":3,"n_rows":38,"n_cols":8,"rows_kept":38,"cut":false,"hidden":false,"merged":[[8,5,12,7],[13,5,21,7],[22,5,28,7],[37,5,45,7],[0,5,1,7],[29,5,29,7],[7,5,7,7],[30,5,35,7],[36,5,36,7]]}
["Kommun (valfri)","Personnummer","Kurskod","Lästa verksamhetspoäng",null,"Summering av redovisat statsbidrag visas nedan när du tryckt på Uppdatera alla under Data i menyn ovan  (eller den röda knappen nedan)"]
[]
[null,null,null,null,null,"Kurskod","Summa lästa verksamhetspoäng","Summa statsbidrag"]
[]
[null,null,null,null,null,"Summa",{"$f":"SUBTOTAL(109,Sammanfattning_lastbil[Summa lästa verksamhetspoäng])","v":0},{"$f":"SUBTOTAL(109,Sammanfattning_lastbil[Summa statsbidrag])","v":0}]
[]
[]
[null,null,null,null,null,"Instruktioner"]
[null,null,null,null,null,"Kommun (valfri)\t \t \t \nNågra kommuner har efterfrågat en möjlighet att notera i blanketten vilken kommun som lämnat uppgifter om en elev. Denna uppgift är inte obligatorisk och ni avgör själva om ni vill skriva in kommuner i kolumn A.\n\n\n"]
[]
[]
[]
[]
[null,null,null,null,null,"Personnummer\t \t \t \nI tabellen summeras bara korrekta personnummer. Personnummer som inte är korrekta dyker upp i flik 4 Kontrollblad. Elever med tillfälliga personnummer rapporteras med födelsedatum och sedan TF20 för kvinna och TF10 för man, exempel: 19920427TF20. Det är även möjligt att rapportera andra TF-nummer.  Det viktiga är att siffran närmast F:et är udda om det är en man och jämn om det är en kvinna. Observera att elever med skyddade personuppgifter rapporteras i separat flik 0 Sekretesselever. \n\n\n\n\n"]
[]
[]
[]
[]
[]
[]
[]
[]
[null,null,null,null,null,"Kurskod\t \t \t \nKurserna som ingår Godstransport 1 (Lastbil) är TRAYRK1, GOSGOD0 och GODGOD1. För varje person anger ni vilken kurs/vilka kurser inom godstransport 1 som eleven läst samt hur många poäng som lästs i respektive kurs. Ni ska bara redovisa elever som läst godstransport 1 i denna flik. För elever som läst persontransport eller godstransport 2 (buss/lastbil med släp) behöver ni redovisa i flik 1 och 3.\n\n\n\n"]
[]
[]
[]
[]
[]
[]
[null,null,null,null,null,"Lästa verksamhetspoäng"]
[null,null,null,null,null,"Här fyller ni i hur många verksamhetspoäng som eleven har genomfört på varje kurs under 2023. Om kursen började 2022 eller avslutas 2024 behöver ni dra av de poäng som inte genomfördes under 2023. Om en elev avbryter en kurs ska ni ange de poäng som eleven har genomfört fram tills avbrottet. \n\nEfter att ni har fyllt i uppgifterna gå till menyn och tryck på Data och sedan Uppdatera alla."]
[]
[]
[]
[]
[]
[null,null,null,null,null,"Godstransport 1 (Lastbil) 600 vp"]
[null,null,null,null,null,"Yrkestrafik, kurskod: TRAYRK1, 300 verksamhetspoäng\nGodstrafik, kurskod: GOSGOD0, 200 verksamhetspoäng\nGodshantering, kurskod: GODGOD, 100 verksamhetspoäng\n \t \t \nOBS! Redovisar ni mer än 300 poäng inom TRAYRK1, mer än 200 poäng inom GOSGOD0 eller mer än 100 poäng inom GODGOD1 behöver ni motivera detta i en komplettering. Vi kan även komma att begära in ytterligare underlag som styrker ert svar.\n\n\n"]

{"sheet":"3. Lastbil med släp","index":4,"n_rows":37,"n_cols":8,"rows_kept":37,"cut":false,"hidden":false,"merged":[[7,5,11,7],[12,5,20,7],[21,5,27,7],[36,5,46,7],[0,5,1,7],[6,5,6,7],[28,5,28,7],[29,5,34,7],[35,5,35,7]]}
["Kommun (valfri)","Personnummer","Kurskod","Lästa verksamhetspoäng",null,"Summering av redovisat statsbidrag visas nedan när du tryckt på Uppdatera alla under Data i menyn ovan (eller den röda knappen nedan)"]
[]
[null,null,null,null,null,"Kurskod","Summa lästa verksamhetspoäng","Summa statsbidrag"]
[]
[null,null,null,null,null,"Summa",{"$f":"SUBTOTAL(109,Sammanfattning_Lastbil_släp[Summa lästa verksamhetspoäng])","v":0},{"$f":"SUBTOTAL(109,Sammanfattning_Lastbil_släp[Summa statsbidrag])","v":0}]
[]
[null,null,null,null,null,"Instruktioner"]
[null,null,null,null,null,"Kommun (valfri)\t \t \t \nNågra kommuner har efterfrågat en möjlighet att notera i blanketten vilken kommun som lämnat uppgifter om en elev. Denna uppgift är inte obligatorisk och ni avgör själva om ni vill skriva in kommuner i kolumn A.\n\n\n"]
[]
[]
[]
[]
[null,null,null,null,null,"Personnummer\t \t \t \nI tabellen summeras bara korrekta personnummer. Personnummer som inte är korrekta dyker upp i flik 4 Kontrollblad. Elever med tillfälliga personnummer rapporteras med födelsedatum och sedan TF20 för kvinna och TF10 för man, exempel: 19920427TF20. Det är även möjligt att rapportera andra TF-nummer.  Det viktiga är att siffran närmast F:et är udda om det är en man och jämn om det är en kvinna. Observera att elever med skyddade personuppgifter rapporteras i separat flik 0 Sekretesselever. \n\n\n\n\n"]
[]
[]
[]
[]
[]
[]
[]
[]
[null,null,null,null,null,"Kurskod\t \t \t \nKurserna som ingår Godstransport 2 (Lastbil med släp) är TRAYRK1, GOSGOD0, GODGOD1 och TRAFOR0. För varje person anger ni vilken kurs/vilka kurser inom godstransport 2 som eleven läst samt hur många poäng som lästs i respektive kurs. Ni ska bara redovisa elever som läst godstransport 2 i denna flik. För elever som läst persontransport eller godstransport 1 (buss/lastbil) behöver ni redovisa i flik 1 och 2.\n\n\n\n"]
[]
[]
[]
[]
[]
[]
[null,null,null,null,null,"Lästa verksamhetspoäng"]
[null,null,null,null,null,"Här fyller ni i hur många verksamhetspoäng som eleven har genomfört på varje kurs under 2023. Om kursen började 2022 eller avslutas 2024 behöver ni dra av de poäng som inte genomfördes under 2023. Om en elev avbryter en kurs ska ni ange de poäng som eleven har genomfört fram tills avbrottet. \n\nEfter att ni har fyllt i uppgifterna gå till menyn och tryck på Data och sedan Uppdatera alla."]
[]
[]
[]
[]
[]
[null,null,null,null,null,"Godstransport 2 (Lastbil med släp) 800 vp"]
[null,null,null,null,null,"Yrkestrafik, kurskod: TRAYRK1, 300 verksamhetspoäng\nGodstrafik, kurskod: GOSGOD0, 200 verksamhetspoäng\nGodshantering, kurskod: GODGOD1, 100 verksamhetspoäng\nFordonskombinationer, kurskod: TRAFOR0, 200 verksamhetspoäng\n\t \t \n \t\t \nOBS! Redovisar ni mer än 300 poäng inom TRAYRK1, mer än 200 poäng inom GOSGOD0, mer än 100 poäng inom GODGOD1 eller mer än 200 poäng inom TRAFOR0 behöver ni motivera detta i en komplettering. Vi kan även komma att begära in ytterligare underlag som styrker ert svar.\n\n\n"]

{"sheet":"4. Kontrollblad","index":5,"n_rows":36,"n_cols":14,"rows_kept":36,"cut":false,"hidden":false,"merged":[[1,12,1,14],[2,12,2,14],[3,12,13,14]]}
["Utbildningspaket","Radnummer","Kommun (valfri)","Personnummer","Kurskod","Lästa verksamhetspoäng","Korrekt personnummer","Korrekt kurskod","Korrekt verksamhetspoäng","Avdragna poäng","Avdrag på grund av överstigande poäng"]
[null,null,null,null,null,null,null,null,null,null,null,null,"Instruktioner"]
[null,null,null,null,null,null,null,null,null,null,null,null,"Kontroll personnummer och kurskod"]
[null,null,null,null,null,null,null,null,null,null,null,null,"I tabellen visas personnummer som inte är korrekta, och även kurskoder som är felaktiga alternativt inte godkända. I kontrollen fångas det även upp om lästa verksamhetspoäng är angivna i fel format eller om värdet är tomt, samt om antalet poäng överstiger maxtaket för kursen. Om antalet poäng överstiger maxtaket så kommer vi att skicka ut en komplettering där ni får möjlighet att ange varför eleven läst mer än den tillåtna maxgränsen. Om personnumret, kurskoden och/eller verksamhetspoäng dyker upp som Nej i listan så har poängen inte summerats för eleven i fråga. Det felaktiga uppgifterna måste då korrigeras i flik 1, 2 och/eller 3  innan poängen räknas med. Efter att korrigering av felaktiga uppgifter gjorts, gå till menyn och tryck på Data och sedan Uppdatera alla (eller den röda knappen nedan). När felet/felen är korrigerade så kommer eleven att försvinna från kontrollbladet, flik 4."]
[]
[]
[]
[]
[]
[]
[]
[]
[]
[]
[]
[]
[]
[]
[]
[]
[]
[]
[]
[]
[]
[]
[]
[]
[]
[]
[]
[]
[]
[]
[]
[null,null,null,null,null,null,null,null,null,null,null,null,null,"Högskola, universitet, yrkeshögskola"]

{"sheet":"Kurslista","index":6,"n_rows":10,"n_cols":4,"rows_kept":10,"cut":false,"hidden":true,"merged":[]}
["Utbildningstyp","Kurskod","Poäng","Statsbidrag_per_poäng"]
["Buss","TRAYRK1",300,{"$f":"60000/500","v":120}]
["Buss","PESPER1",200,{"$f":"60000/500","v":120}]
["Lastbil","TRAYRK1",300,{"$f":"69000/600","v":115}]
["Lastbil","GOSGOD0",200,{"$f":"69000/600","v":115}]
["Lastbil","GODGOD1",100,115]
["Lastbil_med_släp","TRAYRK1",300,{"$f":"95000/800","v":118.75}]
["Lastbil_med_släp","GOSGOD0",200,{"$f":"95000/800","v":118.75}]
["Lastbil_med_släp","GODGOD1",100,118.75]
["Lastbil_med_släp","TRAFOR0",200,118.75]

{"sheet":"5. EU-medel","index":7,"n_rows":15,"n_cols":6,"rows_kept":15,"cut":false,"hidden":false,"merged":[[12,1,13,2],[12,4,13,5],[0,2,0,5],[1,0,1,6],[4,1,4,4],[6,1,6,4],[8,1,8,4],[10,1,10,4]]}
[null,null,"Statsbidrag för regional yrkesinriktad vuxenutbildning delfinansierades av EU-medel under bidragsåret 2023. "]
["Insamling av samtliga aktörer som bedrivit utbildning finansierad av Yrkesförare under år 2023"]
[]
[]
[null,"För 2020-2023 har Skolverket tilldelats EU-medel som delfinansierar statsbidrag (2016:937) för regional yrkesinriktad vuxenutbildning. \n\nSkolverket samlar in uppgifter från er för att sedan rapportera vidare till Ekonomistyrningsverket och Europeiska kommissionen. Enligt 36 § tredje stycket i förordning (2016:937) ska ni lämna sådan ekonomisk och annan redovisning som Ekonomistyrningsverket och Europeiska kommissionen begär."]
[]
[null,"Skolverket behöver rapporter in samltiga aktörer som bedrivit utbildning inom regionalt yrkesvux under 2023. I den här fliken ska ni fylla i information om upphandlad utbildning samt information om kommuner/kommunalförbund som bedrivit utbildning i egen regi."]
[]
[null,"Vänstra tabellen\nI vänstra tabellen ska du fylla i de utbildningsanordnare som ni, eller kommuner i er samverkansgrupp, har upphandlat utbildning från. Har ni upphandlat utbildning från en annan kommun så ska den kommunen fyllas i som utbildningsanordnare."]
[]
[null,"Högra tabellen\nI högra tabellen ska ni fylla i de kommuner/kommunalförbund i ert samverkansområde som bedrivit utbildning i egen regi."]
[]
[null,"Fyll i samtliga utbildningsanordnare från vilka ni, eller kommuner i er samverkansgrupp, \nhar upphandlat utbildning från. \nUtbildningen ska ha bekostats av statsbidraget för Yrkesförare.",null,null,"Fyll i samtliga kommuner/kommunalförbund i er samverkansgrupp som bedrivit \nutbildning i egen regi. \nUtbildningen ska ha bekostats av statsbidraget för Yrkesförare."]
[]
[null,"Namn på utbildningsanordnare","Organisationsnummer för utbildningsanordnare",null,"Namn på kommun/kommunalförbund som bedrivit utbildning i egen regi","Organisationsnummer för kommunen/kommunalförbundet"]

{"sheet":"6. Sammanställning redovisning","index":8,"n_rows":96,"n_cols":8,"rows_kept":96,"cut":false,"hidden":false,"merged":[[12,1,13,4],[12,6,13,9],[0,0,1,10],[4,1,5,4],[4,6,5,9],[8,1,9,4],[8,6,9,9],[31,1,32,4],[31,6,32,9],[36,1,37,9],[39,1,41,9],[43,0,43,10],[16,1,17,4],[16,6,17,9],[24,1,25,4],[24,6,25,9],[28,1,29,4],[28,6,29,9],[55,7,56,9],[53,1,54,3],[53,4,54,6],[53,7,54,9],[45,1,48,9],[50,1,51,4],[50,6,51,9],[57,1,58,3],[57,4,58,6],[57,7,58,9],[96,1,103,9],[20,1,21,4],[20,6,21,9],[63,1,64,9],[67,0,68,10],[70,1,73,9],[76,1,83,9],[86,1,93,9],[95,1,95,9],[62,1,62,4],[62,6,62,9],[55,1,56,3],[55,4,56,6]]}
["Summering av er redovisning"]
[]
[]
[]
[null,"Ange huvudsökande kommun",null,null,null,null,"Huvudsökande"]
[]
[]
[]
[null,"Beviljat belopp",null,null,null,null,{"$f":"VLOOKUP(G5,'Sammanställning ansökan'!A:B,2,FALSE)","v":"Beviljat belopp"}]
[]
[]
[]
[null,"Redovisat belopp i fliken\n1. Buss",null,null,null,null,{"$f":"IFERROR(Sammanfattning_buss[[#Totals],[Summa statsbidrag]],\"\")","v":0}]
[]
[]
[]
[null,"Redovisat belopp i fliken\n2. Lastbil",null,null,null,null,{"$f":"IFERROR(Sammanfattning_lastbil[[#Totals],[Summa statsbidrag]],\"\")","v":0}]
[]
[]
[]
[null,"Redovisat belopp i fliken\n3. Lastbil med släp",null,null,null,null,{"$f":"IFERROR(Sammanfattning_Lastbil_släp[[#Totals],[Summa statsbidrag]],\"\")","v":0}]
[]
[]
[]
[null,"Redovisat belopp i fliken\n0. Sekretesselever",null,null,null,null,{"$f":"IFERROR('0. Sekretesselever'!O11,\"\")","v":0}]
[]
[]
[]
[null,"Redovisat belopp innan handläggning",null,null,null,null,{"$f":"IFERROR(G13+G17+G21+G25+H56,\"\")","v":0}]
[]
[]
[null,"Belopp som ska återbetalas",null,null,null,null,{"$f":"IFERROR(IF(G29>G9,0,G9-G29),\"\")","v":""}]
[]
[]
[null,"Kontrollera att ni lämnat uppgifter om utbildningsanordnare i flik 5. Övriga uppgifter"]
[]
[null,"Har ni angett felaktiga personnummer, kurskoder eller verksamhetspoäng har dessa poäng inte räknats med i er redovisning. Kontrollera uppgifterna i flik 4. Kontrollblad."]
[]
[]
[null,"I handläggningen kommer vi begära komplettering gällande dubbletter. Ert redovisade belopp kan komma att ändras efter handläggningen av er redovisning."]
[]
[]
[]
["Bearbetade uppgifter i handläggningen"]
[]
[null,"Nedan summeras ytterligare poäng som vi räknat bort/lagt till i handläggningen. Begränsning av kurser samt dubbletter har vi kontrollerat i kompletteringen. "]
[]
[]
[]
[]
[null,"Redovisat belopp efter handläggning",null,null,null,null,{"$f":"G29-H58-H56","v":0}]
[]
[]
[null,"Uppgift som har kontrollerats",null,null,"Borträknade poäng",null,null,"Motsvarar i statsbidrag"]
[]
[null,"Dubbletter",null,null,{"$f":"Dubblettkontroll!K3","v":0},null,null,{"$f":"IFERROR(E56*37.5,\"\")","v":0}]
[]
[null,"Överstigande poäng",null,null,{"$f":"SUMIFS(Fel[Avdragna poäng],Fel[Avdrag på grund av överstigande poäng],\"<>JA\")","v":0},null,null,{"$f":"IFERROR(E58*37.5,\"\")","v":0}]
[]
[]
[]
[]
[null,"Ange fakturareferens:"]
[null,"Ange fakturareferens ni vill ha på fakturan för Yrkesförare vid eventuellt återkrav av bidraget. Uppgiften är inte obligatorisk. Du kan ange max 25 tecken."]
[]
[]
[]
["Eventuellt medskick"]
[]
[]
[null,"Vi jobbar för att förbättra vårt arbete med statsbidragen inom regionalt yrkesvux. Vi har även en löpande dialog med Utbildningsdepartementet kring statsbidragen. Det skulle vara värdefullt för oss att ta del av era synpunkter. Uppgifterna är frivilliga och kommer enbart användas för vårt interna arbete."]
[]
[]
[]
[]
[null,"Hur har bidragsåret 2023 upplevts? (ansökningsfasen, löpande ansökan, redovisning)"]
[]
[]
[]
[]
[]
[]
[]
[]
[]
[null,"Hur skulle Skolverket kunna förbättra sitt arbete med statsbidragen för att underlätta för er?"]
[]
[]
[]
[]
[]
[]
[]
[]
[]
[null,"Vad vill ni att Skolverket lyfter i kommunikationen med Utbildningsdepartementet?\n(vi kommer sammanställa samtliga svar och inte lämna vidare enskilda svar)"]

{"sheet":"Sammanställning ansökan","index":9,"n_rows":47,"n_cols":19,"rows_kept":47,"cut":false,"hidden":false,"merged":[]}
["Huvudsökande","Beviljat belopp","Antal samverkande kommuner","Kommun 1","Kommun 2","Kommun 3","Kommun 4","Kommun 5","Kommun 6","Kommun 7","Kommun 8","Kommun 9","Kommun 10","Kommun 11","Kommun 12","Kommun 13","Kommun 14","Kommun 15","Kommun 16"]
["BORLÄNGE KOMMUN",8836485,15,"BORLÄNGE KOMMUN","AVESTA KOMMUN","FALU KOMMUN","GAGNEFS KOMMUN","HEDEMORA KOMMUN","LEKSANDS KOMMUN","LUDVIKA KOMMUN","MALUNG-SÄLENS KOMMUN","MORA KOMMUN","ORSA KOMMUN","RÄTTVIKS KOMMUN","SMEDJEBACKENS KOMMUN","SÄTERS KOMMUN","VANSBRO KOMMUN","ÄLVDALENS KOMMUN"]
["BORÅS KOMMUN",2392000,8,"BORÅS KOMMUN","BOLLEBYGDS KOMMUN","HERRLJUNGA KOMMUN","MARKS KOMMUN","SVENLJUNGA KOMMUN","TRANEMO KOMMUN","VÅRGÅRDA KOMMUN","ULRICEHAMNS KOMMUN"]
["EKSJÖ KOMMUN",1520000,6,"EKSJÖ KOMMUN","SÄVSJÖ KOMMUN","VETLANDA KOMMUN","ANEBY KOMMUN","NÄSSJÖ KOMMUN","TRANÅS KOMMUN"]
["ESKILSTUNA KOMMUN",5319759,6,"ESKILSTUNA KOMMUN","FLENS KOMMUN","GNESTA KOMMUN","KATRINEHOLMS KOMMUN","STRÄNGNÄS KOMMUN","VINGÅKERS KOMMUN"]
["ESLÖVS KOMMUN",5809000,12,"ESLÖVS KOMMUN","BURLÖVS KOMMUN","HÖRBY KOMMUN","HÖÖRS KOMMUN","KÄVLINGE KOMMUN","LOMMA KOMMUN","LUNDS KOMMUN","MALMÖ KOMMUN","STAFFANSTORPS KOMMUN","SVEDALA KOMMUN","TRELLEBORGS KOMMUN","VELLINGE KOMMUN"]
["FAGERSTA KOMMUN",620000,3,"FAGERSTA KOMMUN","NORBERGS KOMMUN","SKINNSKATTEBERGS KOMMUN"]
["GÄVLE KOMMUN",4430916,5,"GÄVLE KOMMUN","SANDVIKENS KOMMUN","HOFORS KOMMUN","ÄLVKARLEBY KOMMUN","OCKELBO KOMMUN"]
["GÖTEBORGS KOMMUN",23825000,13,"GÖTEBORGS KOMMUN","ALE KOMMUN","ALINGSÅS KOMMUN","HÄRRYDA KOMMUN","KUNGSBACKA KOMMUN","KUNGÄLVS KOMMUN","LERUMS KOMMUN","LILLA EDETS KOMMUN","MÖLNDALS KOMMUN","TJÖRNS KOMMUN","PARTILLE KOMMUN","STENUNGSUNDS KOMMUN","ÖCKERÖ KOMMUN"]
["HALMSTADS KOMMUN",4650000,5,"HALMSTADS KOMMUN","VARBERGS KOMMUN","LAHOLMS KOMMUN","HYLTE KOMMUN","FALKENBERGS KOMMUN"]
["HELSINGBORGS KOMMUN",11280000,11,"HELSINGBORGS KOMMUN","BJUVS KOMMUN","BÅSTADS KOMMUN","HÖGANÄS KOMMUN","KLIPPANS KOMMUN","LANDSKRONA KOMMUN","PERSTORPS KOMMUN","SVALÖVS KOMMUN","ÄNGELHOLMS KOMMUN","ÅSTORPS KOMMUN","ÖRKELLJUNGA KOMMUN"]
["HUDIKSVALLS KOMMUN",1941153,3,"HUDIKSVALLS KOMMUN","OVANÅKERS KOMMUN","LJUSDALS KOMMUN"]
["HULTSFREDS KOMMUN",1900000,3,"HULTSFREDS KOMMUN","VIMMERBY KOMMUN","VÄSTERVIKS KOMMUN"]
["Hälsinglands Utbildningsförbund",1812180,3,"BOLLNÄS KOMMUN","NORDANSTIGS KOMMUN","SÖDERHAMNS KOMMUN"]
["HÄSSLEHOLMS KOMMUN",2550000,5,"HÄSSLEHOLMS KOMMUN","KRISTIANSTADS KOMMUN","OSBY KOMMUN","ÖSTRA GÖINGE KOMMUN","BROMÖLLA KOMMUN"]
["JÖNKÖPINGS KOMMUN",3410000,3,"JÖNKÖPINGS KOMMUN","HABO KOMMUN","MULLSJÖ KOMMUN"]
["KALMAR KOMMUN",5694488,6,"KALMAR KOMMUN","BORGHOLMS KOMMUN","EMMABODA KOMMUN","MÖRBYLÅNGA KOMMUN","NYBRO KOMMUN","TORSÅS KOMMUN"]
["KARLSHAMNS KOMMUN",5000000,6,"KARLSHAMNS KOMMUN","KARLSKRONA KOMMUN","RONNEBY KOMMUN","TINGSRYDS KOMMUN","OLOFSTRÖMS KOMMUN","SÖLVESBORGS KOMMUN"]
["KARLSTADS KOMMUN",9121477,16,"KARLSTADS KOMMUN","ARVIKA KOMMUN","EDA KOMMUN","FILIPSTADS KOMMUN","FORSHAGA KOMMUN","GRUMS KOMMUN","HAGFORS KOMMUN","HAMMARÖ KOMMUN","KILS KOMMUN","KRISTINEHAMNS KOMMUN","MUNKFORS KOMMUN","STORFORS KOMMUN","SUNNE KOMMUN","SÄFFLE KOMMUN","TORSBY KOMMUN"]
["KUNGSÖRS KOMMUN",1470051,3,"KUNGSÖRS KOMMUN","ARBOGA KOMMUN","KÖPINGS KOMMUN"]
["Kunskapsförbundet Väst",1334000,6,"BENGTSFORS KOMMUN","DALS-EDS KOMMUN","MELLERUDS KOMMUN","ÅMÅLS KOMMUN","TROLLHÄTTANS KOMMUN","VÄNERSBORGS KOMMUN"]
["LAPPLANDS KOMMUNALFÖRBUND",2426462,4,"GÄLLIVARE KOMMUN","KIRUNA KOMMUN","JOKKMOKKS KOMMUN","PAJALA KOMMUN"]
["LJUNGBY KOMMUN",2200000,3,"LJUNGBY KOMMUN","MARKARYDS KOMMUN","ÄLMHULTS KOMMUN"]
["LULEÅ KOMMUN",6222886,7,"LULEÅ KOMMUN","ARJEPLOGS KOMMUN","ARVIDSJAURS KOMMUN","BODENS KOMMUN","KALIX KOMMUN","PITEÅ KOMMUN","ÄLVSBYNS KOMMUN"]
["NORRKÖPINGS KOMMUN",11959923,13,"NORRKÖPINGS KOMMUN","LINKÖPINGS KOMMUN","MOTALA KOMMUN","MJÖLBY KOMMUN","VALDEMARSVIKS KOMMUN","VADSTENA KOMMUN","ÅTVIDABERGS KOMMUN","YDRE KOMMUN","SÖDERKÖPINGS KOMMUN","ÖDESHÖGS KOMMUN","BOXHOLMS KOMMUN","FINSPÅNGS KOMMUN","KINDA KOMMUN"]
["NYKÖPINGS KOMMUN",2126434,3,"NYKÖPINGS KOMMUN","OXELÖSUNDS KOMMUN","TROSA KOMMUN"]
["OSKARSHAMNS KOMMUN",913000,3,"OSKARSHAMNS KOMMUN","HÖGSBY KOMMUN","MÖNSTERÅS KOMMUN"]
["REGION GOTLAND",1927450,1,"GOTLANDS KOMMUN"]
["SIGTUNA KOMMUN",10799427,5,"SIGTUNA KOMMUN","SOLLENTUNA KOMMUN","SOLNA KOMMUN","UPPLANDS VÄSBY KOMMUN","LIDINGÖ KOMMUN"]
["SJÖBO KOMMUN",4125194,5,"SJÖBO KOMMUN","YSTAD KOMMUN","SIMRISHAMNS KOMMUN","TOMELILLA KOMMUN","SKURUPS KOMMUN"]
["SKÖVDE KOMMUN",9109544,15,"SKÖVDE KOMMUN","ESSUNGA KOMMUN","FALKÖPINGS KOMMUN","GRÄSTORPS KOMMUN","GULLSPÅNGS KOMMUN","GÖTENE KOMMUN","HJO KOMMUN","KARLSBORGS KOMMUN","LIDKÖPINGS KOMMUN","MARIESTADS KOMMUN","SKARA KOMMUN","TIBRO KOMMUN","TIDAHOLMS KOMMUN","TÖREBODA KOMMUN","VARA KOMMUN"]
["SOLLEFTEÅ KOMMUN",1481000,4,"SOLLEFTEÅ KOMMUN","ÖRNSKÖLDSVIKS KOMMUN","HÄRNÖSANDS KOMMUN","KRAMFORS KOMMUN"]
["STOCKHOLMS KOMMUN",14640000,3,"STOCKHOLMS KOMMUN","NACKA KOMMUN","VÄRMDÖ KOMMUN"]
["SÖDERTÄLJE KOMMUN",6131000,5,"SÖDERTÄLJE KOMMUN","NYKVARNS KOMMUN","HUDDINGE KOMMUN","SALEMS KOMMUN","BOTKYRKA KOMMUN"]
["TIMRÅ KOMMUN",6051796,3,"TIMRÅ KOMMUN","SUNDSVALLS KOMMUN","ÅNGE KOMMUN"]
["TYRESÖ KOMMUN",6076261,3,"TYRESÖ KOMMUN","NYNÄSHAMNS KOMMUN","HANINGE KOMMUN"]
["TÄBY KOMMUN",4010000,5,"TÄBY KOMMUN","VALLENTUNA KOMMUN","DANDERYDS KOMMUN","ÖSTERÅKERS KOMMUN","VAXHOLMS KOMMUN"]
["UDDEVALLA KOMMUN",5119985,3,"UDDEVALLA KOMMUN","ORUST KOMMUN","FÄRGELANDA KOMMUN"]
["UMEÅ KOMMUN",12546877,15,"UMEÅ KOMMUN","BJURHOLMS KOMMUN","DOROTEA KOMMUN","LYCKSELE KOMMUN","MALÅ KOMMUN","NORDMALINGS KOMMUN","NORSJÖ KOMMUN","ROBERTSFORS KOMMUN","SKELLEFTEÅ KOMMUN","SORSELE KOMMUN","STORUMANS KOMMUN","VILHELMINA KOMMUN","VINDELNS KOMMUN","VÄNNÄS KOMMUN","ÅSELE KOMMUN"]
["UPPLANDS-BRO KOMMUN",9318003,5,"UPPLANDS-BRO KOMMUN","EKERÖ KOMMUN","JÄRFÄLLA KOMMUN","NORRTÄLJE KOMMUN","SUNDBYBERGS KOMMUN"]
["UPPSALA KOMMUN",9375648,7,"UPPSALA KOMMUN","ENKÖPINGS KOMMUN","HEBY KOMMUN","HÅBO KOMMUN","KNIVSTA KOMMUN","TIERPS KOMMUN","ÖSTHAMMARS KOMMUN"]
["VÄSTERÅS KOMMUN",4928493,4,"VÄSTERÅS KOMMUN","HALLSTAHAMMARS KOMMUN","SALA KOMMUN","SURAHAMMARS KOMMUN"]
["VÄXJÖ KOMMUN",5067915,4,"VÄXJÖ KOMMUN","ALVESTA KOMMUN","LESSEBO KOMMUN","UPPVIDINGE KOMMUN"]
["ÖREBRO KOMMUN",8309945,12,"ÖREBRO KOMMUN","KARLSKOGA KOMMUN","DEGERFORS KOMMUN","KUMLA KOMMUN","ASKERSUNDS KOMMUN","NORA KOMMUN","LINDESBERGS KOMMUN","HÄLLEFORS KOMMUN","LJUSNARSBERGS KOMMUN","LEKEBERGS KOMMUN","HALLSBERGS KOMMUN","LAXÅ KOMMUN"]
["ÖSTERSUNDS KOMMUN",4030000,8,"ÖSTERSUNDS KOMMUN","BERGS KOMMUN","BRÄCKE KOMMUN","HÄRJEDALENS KOMMUN","KROKOMS KOMMUN","RAGUNDA KOMMUN","STRÖMSUNDS KOMMUN","ÅRE KOMMUN"]
[]
["Totalt",251813752,278]

{"sheet":"Dubblettkontroll","index":10,"n_rows":9,"n_cols":11,"rows_kept":9,"cut":false,"hidden":true,"merged":[]}
["Kommun (valfri)","Personnummer","Kurskod","Lästa poäng","Merged.Väljåtgärd"]
[null,null,null,null,null,null,"1.","Sökväg kompletteringssvar",null,null,"Summa avdrag poäng dubbletter"]
[null,null,null,null,null,null,""]
[]
[null,null,null,null,null,null,"2."]
[]
[]
[]
[null,null,null,null,null,null,"3."]

{"sheet":"Kontrollog","index":11,"n_rows":5,"n_cols":3,"rows_kept":5,"cut":false,"hidden":true,"merged":[]}
["Kontroller","Arbetsblad","Utfall"]
["Medfinansiering","5. EU-medel"]
["Uppdatering / redovisat belopp","6. Sammanställning redovisning"]
["Inte angivit antal elever med sekretess","0. Sekretesselever"]
["Felaktiga uppgifter","4. Kontrollblad"]

{"sheet":"Överstigande poäng","index":12,"n_rows":3,"n_cols":1,"rows_kept":3,"cut":false,"hidden":true,"merged":[]}
["Avdrag på grund av överstigande poäng"]
["JA"]
["NEJ"]